Cogmind - Beta 13 X2 *** ADVENTURER MODE // 2024.02.16 @ 23:24:06 // Winter2019/RPGLIKE Player: Ghostneedle Result: Destroyed by 8R-AWN with 8R-AWN's Boregun Performance ------------- Evolutions (0) 0 Regions Visited (3) 600 Robots Destroyed (23) 115 Value Destroyed (397) 397 Prototype IDs (23) 460 Alien Tech Used (0) 0 Bonus (179) 179 TOTAL SCORE: 1751 Bonus ------- Aligned with FarCom 300 Friendly Fire -121 Cogmind --------- Core Integrity 0/900 Matter 300/300 Energy 250/250 System Corruption 0% Temperature Cool (0) Movement Treading (160) Location -10/Exiles Parts ------- > --- POWER (1) -------- Ion Engine > --- PROPULSION (2) --- Light Treads Light Treads > --- UTILITY (3) ------ Improved Heat Sink Targeting Computer Skeleton Box > --- WEAPON (4) ------- Assault Rifle Assault Rifle Makeshift Sword Longsword +1 > --- INVENTORY (2) ---- Firepult Peak State ------------ > --- POWER ------------ Ion Engine > --- PROPULSION ------- Light Treads Light Treads > --- UTILITY ---------- Improved Heat Sink Targeting Computer Skeleton Box > --- WEAPON ----------- Assault Rifle Assault Rifle Makeshift Sword Longsword +1 > --- INVENTORY -------- Firepult [Rating: 29] Favorites ----------- Power Ion Engine Engine Ion Engine Propulsion Light Treads Treads Light Treads Utility Targeting Computer Device Improved Heat Sink Storage Small Battery Processor Targeting Computer Weapon Assault Rifle Energy Gun EM Pulse Gun Ballistic Gun Assault Rifle Slashing Weapon Longsword +1 Build | -11 -10 -10 -10 ------- Run | Yrd Mat Min Exi Slots Evolved 6 | 5 1 . . Power . | . . . . Propulsion 1 | 1 . . . Utility 2 | 2 . . . Weapon 3 | 2 1 . . Parts Attached 20 | 5 9 1 5 Power 1 | 1 . . . Engine 1 | 1 . . . Core . | . . . . Reactor . | . . . . Propulsion 2 | 2 . . . Treads 2 | 2 . . . Leg . | . . . . Wheel . | . . . . Hover . | . . . . Flight . | . . . . Utility 10 | . 7 . 3 Device 5 | . 3 . 2 Storage 1 | . . . 1 Processor 4 | . 4 . . Hackware . | . . . . Protection . | . . . . Artifact . | . . . . Weapon 7 | 2 2 1 2 Energy Gun 1 | 1 . . . Energy Cannon . | . . . . Ballistic Gun 4 | 1 2 1 . Ballistic Cannon . | . . . . Launcher . | . . . . Special Weapon . | . . . . Impact Weapon . | . . . . Slashing Weapon 2 | . . . 2 Piercing Weapon . | . . . . Special Melee Weapon . | . . . . Unidentified Prototypes 1 | . . . 1 Parts Lost . | . . . . Power . | . . . . Propulsion . | . . . . Utility . | . . . . Weapon . | . . . . Highest Loss Streak . | . . . . To Critical Strikes . | . . . . Average Slot Usage (%) 98 | . 96 100 100 Engine 10 | . 10 10 10 Treads 20 | . 21 20 20 Device 10 | . 7 10 16 Processor 19 | . 22 20 13 Energy Gun 4 | . 10 2 . Ballistic Gun 31 | . 23 37 33 Slashing Weapon 1 | . . . 6 Naked Turns . | . . . . Heaviest Build 17 | 9 13 13 17 Greatest Support 40 | 40 40 40 40 Greatest Overweight (x) . | . . . . Average Overweight (x) . | . . . . Largest Inventory Capacity 2 | . . 2 2 Average Capacity . | . . 1 2 Most Carried 2 | . . 1 2 Average Carried . | . . . 1 Final Capacity 2 | . . 2 2 Final Carried 2 | . . 1 2 Class Distribution -------------------- 92% | Hacker-Gunner 7% | Hacker-Mutant Dominant Class ---------------- Hacker-Gunner | -10/Materials Hacker-Gunner | -10/Mines Hacker-Gunner | -10/Exiles Resources | -11 -10 -10 -10 ----------- Run | Yrd Mat Min Exi Matter Collected 576 | 250 161 59 106 Remotely . | . . . . Salvage Created 504 | . 261 129 114 Parts 54 | . 39 11 4 Haulers Intercepted 1 | . 1 . . Recyclers Shooed . | . . . . Parts Field Recycled . | . . . . Retrieved Matter . | . . . . Parts Self-Destructed . | . . . . Prevented . | . . . . Kills | -11 -10 -10 -10 ------- Run | Yrd Mat Min Exi Combat Hostiles Destroyed 23 | . 12 6 5 Guns 20 | . 9 6 5 AOE 3 | . 3 . . Classes Destroyed 6 | . 4 . 2 Hauler 1 | . 1 . . Watcher 3 | . 3 . . Swarmer 12 | . 6 6 . Grunt 6 | . 6 . . Zionite 1 | . . . 1 Assembled 5 | . . . 5 Best Kill Streak 7 | . 7 3 6 Combat Bots Only 6 | . 6 3 5 Max Kills in Single Turn 3 | . 3 2 2 Gunslinging 1 | . 1 1 1 Exploded 3 | . 3 . . Melee . | . . . . Uniques/NPCs Destroyed . | . . . . Combat | -11 -10 -10 -10 -------- Run | Yrd Mat Min Exi Hostile Shots Fired 108 | . 23 9 76 Missed 22 | . 6 1 15 Damage Taken 1278 | . 153 58 1067 Core 1024 | . 123 44 857 Absorbed by Shields . | . . . . Redirected to Core 865 | . 89 38 738 Ignored by Resistances 361 | . 47 16 298 Core Remaining (%) 100 | 100 . . . Volleys Fired 30 | . 18 4 8 Largest 4 | . 4 4 3 Hottest 100 | . 100 100 60 Shots Fired 93 | . 53 16 24 Gun 93 | . 53 16 24 Cannon . | . . . . Launcher . | . . . . Special . | . . . . Kinetic 73 | . 35 14 24 Thermal . | . . . . Explosive . | . . . . Electromagnetic 20 | . 18 2 . Robot Hit Streak 35 | . 35 5 20 Robot Miss Streak 2 | . 1 2 1 Penetration Max . | . . . . Secondary Targets 8 | . 1 4 3 Max Gunslinging Chain 2 | . 1 2 1 Shots Hit Robots 68 | . 37 8 23 Core Hits 39 | . 20 8 11 Critical Kills . | . . . . Critical Parts Destroyed 1 | . . . 1 Critical Strikes 1 | . . . 1 Destroy 1 | . . . 1 Melee Attacks 1 | . . . 1 Impact . | . . . . Slashing 1 | . . . 1 Piercing . | . . . . Sneak Attacks . | . . . . Combat Hostiles . | . . . . Follow-up Attacks . | . . . . Damage Inflicted 1195 | . 714 124 357 Guns 858 | . 520 102 236 Cannons . | . . . . Explosions 184 | . 184 . . Melee 121 | . . . 121 Ramming 32 | . 10 22 . Kinetic 577 | . 252 89 236 Thermal 184 | . 184 . . Explosive . | . . . . Electromagnetic 281 | . 268 13 . Impact . | . . . . Slashing 121 | . . . 121 Piercing . | . . . . Highest Corruption . | . . . . Average Corruption . | . . . . Corruption Purged . | . . . . Corruption Blocked . | . . . . Overload Shots . | . . . . Overflow Damage . | . . . . Projectiles . | . . . . Explosions . | . . . . Melee . | . . . . Knockbacks 1 | . 1 . . Impact 1 | . 1 . . Kinetic . | . . . . Secondary . | . . . . Self-Inflicted Damage 14 | . 14 . . Shots 1 | . 1 . . Rammed 11 | . 3 8 . Targets Rammed 11 | . 3 8 . Kicked . | . . . . Crushed . | . . . . Highest Temperature 106 | . 28 . 106 Average Temperature 33 | . 9 . 64 Received Heat Transfer 453 | . 93 . 360 Siege Activations . | . . . . Robots Corrupted . | . . . . Combat Hostiles . | . . . . Parts Fried 1 | . 1 . . Impact Corruptions . | . . . . Robots Melted . | . . . . Combat Hostiles . | . . . . Parts Melted . | . . . . Heat Transferred 250 | . 250 . . Parts Sabotaged . | . . . . Parts Stolen . | . . . . Parts Stripped . | . . . . Power Chain Reactions 2 | . 2 . . Missiles Intercepted . | . . . . Alert | -11 -10 -10 -10 ------- Run | Yrd Mat Min Exi Peak Influence 221 | . 221 140 . Initial . | . . . . Average 36 | . 51 21 . Maximum Alert Level 1 | . 1 . . Low Security (%) 94 | 100 89 100 . Level 1 5 | . 10 . . Level 2 . | . . . . Level 3 . | . . . . Level 4 . | . . . . Level 5 . | . . . . High Security . | . . . . Max Security . | . . . . Squads Dispatched 3 | . 3 . . Investigation 3 | . 3 . . Extermination . | . . . . Reinforcement . | . . . . Assault . | . . . . Garrison . | . . . . Intercept . | . . . . Searches Triggered . | . . . . Construction Impeded . | . . . . Haulers Reinforced . | . . . . Active Scanning Responses . | . . . . Cargo Convoy Interrupts . | . . . . Stealth | -11 -10 -10 -10 --------- Run | Yrd Mat Min Exi Distress Signals . | . . . . Communications Jammed . | . . . . Distress Signals . | . . . . Times Spotted 32 | . 16 6 10 Peak Tracking Total 13 | . 5 3 13 Tactical Retreats 2 | . . . 2 Traps | -11 -10 -10 -10 ------- Run | Yrd Mat Min Exi Traps Triggered . | . . . . Indirectly . | . . . . Trap Hack Attempts . | . . . . Triggered . | . . . . Disarmed . | . . . . Reprogrammed 10 | . 10 . . Reused 2 | . 2 . . Traps Extracted . | . . . . Installed 1 | . . . 1 Triggered 2 | . 2 . . Most Traps Carried 1 | . . 1 1 Machines | -11 -10 -10 -10 ---------- Run | Yrd Mat Min Exi Machines Disabled 1 | . . . 1 Max in Single Turn 1 | . . . 1 Machines Repaired . | . . . . Machines Dismantled . | . . . . Machines Sabotaged . | . . . . Overloaded Fab Kills . | . . . . Hacking | -11 -10 -10 -10 --------- Run | Yrd Mat Min Exi Machines Accessed 11 | . 10 . 1 Terminals 8 | . 8 . . Fabricators . | . . . . Repair Stations . | . . . . Recycling Units 2 | . 2 . . Scanalyzers . | . . . . Garrison Access . | . . . . Total Hacks 45 | . 44 . 1 Successful 25 | . 24 . 1 Failed 20 | . 20 . . Catastrophic . | . . . . Database Lockouts . | . . . . Manual 36 | . 35 . 1 Terminals 37 | . 37 . . Fabricators . | . . . . Repair Stations . | . . . . Recycling Units 7 | . 7 . . Scanalyzers . | . . . . Garrison Access . | . . . . Terminal Hacks 19 | . 18 . 1 Robot Analysis 5 | . 5 . . Branch Access Points 1 | . 1 . . Terminal Index 1 | . 1 . . Recycling Unit Index 1 | . 1 . . Unreport Threat 2 | . 2 . . Locate Traps 2 | . 2 . . Reprogram Traps 2 | . 2 . . Hauler Manifests 2 | . 2 . . Registered Components 1 | . 1 . . Zone Layout 1 | . 1 . . Derelict Proto ID Bank 1 | . . . 1 Fabricator Hacks . | . . . . Repair Station Hacks . | . . . . Recycling Unit Hacks . | . . . . Scanalyzer . | . . . . Garrison Access Hacks . | . . . . Unauthorized Hacks 6 | . 6 . . Terminals 2 | . 2 . . Botnet 2 | . 2 . . Fabricators . | . . . . Repair Stations . | . . . . Recycling Units 4 | . 4 . . Reject 1 | . 1 . . Mask 1 | . 1 . . Tunnel 2 | . 2 . . Scanalyzers . | . . . . Garrison Access . | . . . . Data Cores Recovered . | . . . . Used . | . . . . Hacking Detections 9 | . 9 . . Full Trace Events . | . . . . Feedback Events . | . . . . Feedback Blocked . | . . . . Robot Schematics Acquired . | . . . . Robots Built . | . . . . Authchips . | . . . . Time . | . . . . Total Robot Build Rating . | . . . . Part Schematics Acquired . | . . . . Parts Built . | . . . . Authchips . | . . . . Time . | . . . . Total Part Build Rating . | . . . . Parts Repaired . | . . . . Time . | . . . . Parts Recycled . | . . . . Recycled Matter . | . . . . Retrieved Matter . | . . . . Retrieved Components . | . . . . Parts Scanalyzed . | . . . . Part Schematics Acquired . | . . . . Parts Damaged . | . . . . Bothacking | -11 -10 -10 -10 ------------ Run | Yrd Mat Min Exi Used RIF Installer . | . . . . Robots Hacked . | . . . . Non-combat . | . . . . Combat . | . . . . Robot Hacks Applied . | . . . . Relay Couplers Released . | . . . . Fabnet Peak Effective % . | . . . . Robots Rewired . | . . . . Allies Hacked . | . . . . Hacks Repelled . | . . . . Allies | -11 -10 -10 -10 -------- Run | Yrd Mat Min Exi Total Allies . | . . . . Largest Group . | . . . . Highest-Rated Group . | . . . . Highest-Rated Ally . | . . . . Total Orders . | . . . . Ally Attacks . | . . . . Total Damage . | . . . . Kills . | . . . . Allies Corrupted . | . . . . Allies Melted . | . . . . Intel | -11 -10 -10 -10 ------- Run | Yrd Mat Min Exi Robot Analysis Total 5 | . 5 . . Derelict Logs Recovered 1 | . . 1 . Drone Launches . | . . . . Drone Recoveries . | . . . . Exploration | -11 -10 -10 -10 ------------- Run | Yrd Mat Min Exi Turns Passed 3121 | 59 1222 1019 821 Spaces Moved 1842 | 34 701 619 488 Core 2 | 2 . . . Treads 1840 | 32 701 619 488 Legs . | . . . . Wheels . | . . . . Hover . | . . . . Flight . | . . . . Fastest Speed 50 | 50 160 160 160 Average Speed 159 | 153 160 160 160 Slowest Speed 160 | 160 160 160 160 Overloaded Moves . | . . . . Propulsion Burnouts . | . . . . Robots Hopped . | . . . . Cave-ins Triggered . | . . . . Exploration Rate (%) 68 | 4 93 96 79 Regions Visited 3 Branch Regions 2 Pre-discovered Areas 2 | . 2 . . Known Exits Taken 1 | . 1 . . Unknown Exits Taken 2 | 1 . 1 . Scrap Searched 1 | . . 1 . Spaces Dug . | . . . . Terrain Destroyed 3 | . 3 . . Melee . | . . . . Projectile . | . . . . AOE 3 | . 3 . . Terrain Rammed . | . . . . Walls Destroyed . | . . . . Machines Disabled . | . . . . Actions | -11 -10 -10 -10 --------- Run | Yrd Mat Min Exi Total 1942 | 38 758 634 512 Wait 15 | . 14 1 . Move 1839 | 33 700 618 488 Hop . | . . . . Pick Up 3 | . . 1 2 Fast Attach 19 | 5 8 1 5 Attach . | . . . . Detach . | . . . . Swap 1 | . 1 . . Drop 12 | . 4 1 7 Fire 30 | . 18 4 8 Melee 1 | . . . 1 Ram . | . . . . Kick . | . . . . Crush 11 | . 3 8 . Escape Stasis . | . . . . Rewire . | . . . . Trap 1 | . . . 1 Miscellaneous 10 | . 10 . . Route ------- -11/Scrapyard -10/Materials (discovered 4 exits: [*Mat x3] / *Min) -10/Mines (discovered 3 exits: [*Mat x2] / *Exi) -10/Exiles (discovered 1 exit: [*Min]) History --------- Turn | Location | Event 1 | -11/Scrapyard | Upgraded with Propulsion slot (x1) 1 | -11/Scrapyard | Upgraded with Utility slot (x2) 1 | -11/Scrapyard | Upgraded with Weapon slot (x2) 7 | -11/Scrapyard | Discovered new exit (range 16) 60 | -11/Scrapyard | Entered Materials 314 | -10/Materials | Identified exit to Mines 372 | -10/Materials | Discovered new exit (range 9) 455 | -10/Materials | Discovered new exit (range 8) 541 | -10/Materials | Build established: Hacker-Gunner 732 | -10/Materials | Reached level 2 747 | -10/Materials | Upgraded with Weapon slot (x1) 803 | -10/Materials | Discovered new exit (range 8) 1282 | -10/Materials | Entered Mines 1310 | -10/Mines | Met a Derelict bent on vengeance 1471 | -10/Mines | Found a hidden stash of uninstalled traps 1557 | -10/Mines | Reached level 3 1585 | -10/Mines | Discovered new exit (range 15) 1696 | -10/Mines | Discovered new exit (range 7) 1986 | -10/Mines | Deemed a non-threat by the Exiles lab entrance 1986 | -10/Mines | Discovered new exit (range 5) 2301 | -10/Mines | Entered Exiles 2378 | -10/Exiles | Met 8R-AWN 2405 | -10/Exiles | Met EX-HEX 2417 | -10/Exiles | Warned about trapping Exiles lab 2536 | -10/Exiles | Met EX-BIN 2554 | -10/Exiles | Aligned with FarCom system 2556 | -10/Exiles | Given EX-Vault access code 2592 | -10/Exiles | Opened EX-Vault 2599 | -10/Exiles | Found Prototype Device 2599 | -10/Exiles | Identified Skeleton Box 2606 | -10/Exiles | Found Longsword +1 2611 | -10/Exiles | Found Firepult 2647 | -10/Exiles | Warned to stay clear of 0b10 Research branches 2698 | -10/Exiles | Met EX-DEC 2789 | -10/Exiles | Discovered new exit (range 10) 2947 | -10/Exiles | Visited The Gauntlet 3065 | -10/Exiles | Attacked by the Exiles 3089 | -10/Exiles | Core integrity fell below 50% 3103 | -10/Exiles | Core integrity fell below 20% 3122 | -10/Exiles | Destroyed by 8R-AWN with 8R-AWN's Boregun Last Messages --------------- 03108_ Machine disabled. 03108_ Penetrated by HV Slug. 03108_ HV Slug penetrates Machine. 03110_ Acquired 18 matter. 03111_ Penetrated by HV Slug. 03111_ HV Slug penetrates Wall. 03111_ HV Slug penetrates Machine. 03113_ Penetrated by HV Slug. 03113_ HV Slug penetrates Wall. 03113_ Penetrated by HV Slug. 03113_ HV Slug penetrates Wall. 03115_ Penetrated by HV Slug. 03115_ HV Slug penetrates Wall. 03115_ Penetrated by HV Slug. 03115_ HV Slug penetrates Wall. 03117_ Penetrated by HV Slug. 03117_ HV Slug penetrates Wall. 03117_ Penetrated by HV Slug. 03117_ HV Slug penetrates Wall. 03120_ Penetrated by HV Slug. Map ----- +----------------------------------------------------+ | """#???????#" """##?????????????????? | | " """#???????## """""?????????????????? | | " #????????# """##?????????????????? | | " #????????#" "X" """""?????????????????? | | " "#????????#" """ # ?????????????????? | | ""#????????#" """""""""#??????????????????? | | " ""#???????##" ###########??????????????????? | | # ###??????##"" #????????????????????????????? | | # ###?######"" #????????????????????????????? | | # #"###""""""" ##???????????????????????????? | | """""" " "" ##???###########????????????? | | "" """ " #####"""""""""##???????????? | | " " " """ """"##??????????? | | "" " #??????????? | | " """#??????????? | | "a"#??????????? | | " "##?????????# | | ""###???????# | | """""" """#??????## | | ######""" "#????### | | ""##????#####""" ##???# | | """##?????????##""" ##?## | | """##???????????#"""" ### | | ""#???????????##"" g | | ########??####" | | "# ####" @ "" | | %" "" #"""# | | % % %% ###### | | !*% % % ##????? | | [ % " ^ ##?????? | | ! % """ ""#??????? | | ;# ## " " " ""#" "##??????? | | ""#### #;####""" """##"""""""##???????? | | """"##??# ##???###""""###########????????? | | """#??## ####???######??????????????????? | | ""##??#! "!#???????????????????????????? | | """##???#" !#???????????????????????????? | | ##????#" "#???????????????????????????? | | ##?????#!!""!"#???????????????????????????? | | #??????########???????????????????????????? | | ## ##?????????????????????????????????????????? | | ?## #??????????????????????????????????????????? | | ??# #??????????????????????????????????????????? | | ??# #??????????????????????????????????????????? | | ??# #??????????????????????????????????????????? | | ??# #??????????????????????????????????????????? | | ??# #??????????????????????????????????????????? | | ??# #??????????????????????????????????????????? | | ??# #??????????????????????????????????????????? | | ??# #??????????????????????????????????????????? | +----------------------------------------------------+ Best States ------------- Heat Dissipation 39 Energy Generation 10 Energy Capacity 350 Matter Stores 300 Matter Capacity 300 Sight Range 18 Terrain Scan Density 10 Resistance: KI 20 Resistance: TH 20 Resistance: EX 20 Resistance: EM 20 Resistance: I 20 Resistance: S 20 Resistance: P 20 Evasion (%) 40 Targeting Accuracy 10 Recoil Reduction 2 Offensive Hacking 15 Defensive Hacking 5 Item Schematics ----------------- None Robot Schematics ------------------ None Fabricated ------------ Nothing Alien Tech Used ----------------- None Achievements -------------- None Challenges ------------ None RPGLIKE | -11 -10 -10 -10 --------- Run | Yrd Mat Min Exi Levels Raised 2 | . 1 1 . XP Earned 7630 | 4000 2080 1200 350 XP Spent 6950 | 3900 1500 1550 . Upgrades 20 | 8 3 9 . Propulsion Slot 1 | 1 . . . Utility Slot 2 | 2 . . . Weapon Slot 3 | 2 1 . . Core Integrity 6 | . . 6 . Inventory Capacity 2 | . . 2 . Sight Range 2 | . 2 . . Ranged Accuracy 2 | 1 . 1 . Hack Attack % 1 | 1 . . . Hack Defense % 1 | 1 . . . Protomatter Created 232 | . 232 . . Integrity Restored 162 | . 162 . . Core 123 | . 123 . . Parts 39 | . 39 . . Protomatter Decayed 149 | . 149 . . Game ------ Seed AntigravLatentWand Manual? 0 Play Time 00:27:06 Cumulative 170.7 hours Start 2024.02.16 @ 22:52:55 End 2024.02.16 @ 23:24:06 Sessions 1 Manual Loads 0 Difficulty Adventurer Special Mode Winter2019/RPGLIKE Game No. 55 Rogue 24 Adventurer 8 Explorer 23 Win Type - Total 5 Types 3/0/0/1/0/0/0/1/0 Lore% 75 Gallery% 68 Achievement% 60 Wizard Run 0 Options --------- ASCII 0 Keyboard 0 Movement Mouse Keybinds 0 Fullscreen 1 Font 18/Terminus Map View 76x50 Zoom Use 0% Tactical HUD 1 Map Filters NONE Filters NONE Steam 1 RUN: f46569da-c007-4bd3-964c-08c68ee9b7a1